bitfinex-derivatives/quotes_BNBF0:USTF0_20230830
["timestamp","ask_amount","ask_price","bid_price","bid_amount"]
[1693430152237,0.07278914,223.77,223.4,0.8938429]
[1693430152438,0.07278914,223.77,223.41,0.82116779]
[1693430152831,0.07278914,223.77,223.4,0.82116779]
[1693430153035,0.07278914,223.76,223.41,0.82116779]
[1693430153938,0.07278914,223.75,223.41,0.8938429]
[1693430154141,0.07278914,223.75,223.42,0.82116779]
[1693430154958,0.07278914,223.74,223.42,0.82116779]
[1693430155141,0.07278914,223.73,223.42,0.8938429]
[1693430155340,0.07278914,223.72,223.43,0.82116779]
[1693430155737,0.07278914,223.72,223.44,0.82116779]
[1693430155937,0.07278914,223.7,223.43,0.07267511]
[1693430156133,0.07278914,223.7,223.44,0.82116779]
[1693430160544,2.42630493,223.84,223.44,0.82116779]
[1693430160842,0.07322166,223.7,223.45,0.82116779]
[1693430161140,0.07322166,223.7,223.46,0.82116779]
[1693430161341,0.07322166,223.7,223.47,0.82116779]
[1693430161641,0.07322166,223.7,223.48,0.82116779]
[1693430161842,0.07322166,223.7,223.43,0.07310465]
[1693430162040,0.07322166,223.7,223.44,0.82032695]
[1693430162241,0.07322166,223.71,223.44,0.82032695]
[1693430162637,0.07322166,223.7,223.44,0.82032695]
[1693430168242,0.07322166,223.69,223.43,0.82032695]
[1693430168438,0.07322166,223.69,223.44,0.82032695]
[1693430168642,0.07322166,223.69,223.45,0.82032695]
[1693430168944,0.07322166,223.7,223.46,0.82032695]
[1693430169144,0.07322166,223.7,223.41,0.07310465]
[1693430169443,0.07322166,223.7,223.42,0.8205195]
[1693430171044,0.07322166,223.69,223.43,0.07310465]
[1693430171244,0.07322166,223.69,223.44,0.8205195]
[1693430172039,0.07322166,223.69,223.43,0.89362415]
[1693430172245,0.07322166,223.69,223.44,0.8205195]
[1693430180850,0.07322166,223.69,223.44,0.89362415]
[1693430181050,0.07322166,223.69,223.45,0.8205195]
[1693430182052,0.07322166,223.68,223.45,0.8205195]
[1693430182348,0.07322166,223.69,223.45,0.8205195]
[1693430182651,0.07322166,223.68,223.45,0.8205195]
[1693430185956,0.07322166,223.68,223.45,0.89362415]
[1693430186155,0.07322166,223.68,223.46,0.8205195]
[1693430186855,0.07322166,223.68,223.47,0.8205195]
[1693430187055,0.07322166,223.68,223.46,0.8205195]
[1693430188457,0.07322166,223.68,223.46,0.89362415]
[1693430188657,0.07322166,223.68,223.47,0.8205195]
[1693430208870,0.07322166,223.68,223.47,0.89362415]
[1693430209170,0.07322166,223.68,223.48,0.8205195]
[1693430209370,0.07322166,223.68,223.46,0.07310465]
[1693430209670,0.07322166,223.68,223.47,0.82040894]
[1693430210568,0.07322166,223.68,223.47,0.89351359]
[1693430210769,0.07322166,223.68,223.48,0.82040894]
[1693430212173,0.07322166,223.63,223.42,0.07310465]
[1693430212368,0.07322166,223.64,223.43,0.82098602]
[1693430212973,0.07322166,223.64,223.41,0.07310465]
[1693430213174,0.07322166,223.64,223.42,0.82098943]
[1693430213571,0.07322166,223.65,223.42,0.82098943]
[1693430213873,0.07322166,223.65,223.43,0.82098943]
[1693430214073,0.07322166,223.65,223.4,0.07310465]
[1693430214274,0.07322166,223.65,223.41,0.82098708]
[1693430214873,0.07322166,223.66,223.41,0.82098708]
[1693430215676,0.07322166,223.66,223.42,0.82098708]
[1693430215876,0.07322166,223.66,223.43,0.82098708]
[1693430216176,0.07322166,223.66,223.39,0.07310465]
[1693430216376,0.07322166,223.66,223.4,0.82098972]
[1693430216877,0.07322166,223.66,223.41,0.82098972]
[1693430217077,0.07322166,223.66,223.39,0.82098972]
[1693430217270,0.07322166,223.66,223.4,0.82098972]
[1693430217471,0.07322166,223.66,223.41,0.82098972]
[1693430217676,0.07322166,223.66,223.42,0.82098972]
[1693430217978,0.07322166,223.66,223.43,0.82098972]
[1693430218178,0.07322166,223.66,223.38,0.07310465]
[1693430218377,0.07322166,223.66,223.39,0.82102066]
[1693430218579,0.07322166,223.67,223.39,0.82102066]
[1693430221379,0.07322166,223.66,223.4,0.82102066]
[1693430221577,0.14644333,223.69,223.41,0.82102066]
[1693430221578,0.07322166,223.67,223.41,0.82102066]
[1693430221772,0.07322166,223.66,223.38,0.82102066]
[1693430221974,0.07322166,223.66,223.39,0.82102066]
[1693430222176,0.07322166,223.66,223.4,0.82102066]
[1693430222380,0.07322166,223.67,223.4,0.82102066]
[1693430222580,0.07322166,223.67,223.41,0.82102066]
[1693430222880,0.07322166,223.67,223.42,0.82102066]
[1693430223080,0.07322166,223.67,223.36,0.07310465]
[1693430223280,0.07322166,223.67,223.37,0.82112307]
[1693430226484,0.07322166,223.68,223.37,0.82112307]
[1693430228080,0.07322166,223.68,223.36,0.82112307]
[1693430228383,0.07322166,223.67,223.37,0.82112307]
[1693430228683,0.07322166,223.67,223.38,0.82112307]
[1693430228883,0.07322166,223.67,223.39,0.82112307]
[1693430229183,0.07322166,223.67,223.4,0.82112307]
[1693430229377,0.07322166,223.67,223.41,0.82112307]
[1693430229582,0.07322166,223.67,223.35,0.82112307]
[1693430229781,0.07322166,223.67,223.36,0.82120171]
[1693430229983,0.07322166,223.67,223.34,0.07310465]
[1693430229984,0.07322166,223.67,223.35,0.82120171]
[1693430230179,0.07322166,223.67,223.36,0.82120171]
[1693430230384,0.07322166,223.67,223.37,0.82120171]
[1693430230684,0.07322166,223.67,223.38,0.82120171]
[1693430230882,0.07322166,223.67,223.39,0.82120171]
[1693430231083,0.07322166,223.67,223.4,0.82120171]
[1693430231284,0.07322166,223.67,223.41,0.82120171]
[1693430231483,0.07322166,223.67,223.34,0.07310465]
[1693430231684,0.07322166,223.67,223.35,0.82120965]
[1693430232981,0.07322166,223.67,223.34,0.82120965]
[1693430233180,0.07322166,223.67,223.33,0.07310465]
[1693430233181,0.07322166,223.67,223.35,0.82120965]
[1693430233382,0.07322166,223.67,223.36,0.82120965]
[1693430233588,0.07322166,223.67,223.37,0.82120965]
[1693430233784,0.07322166,223.67,223.34,0.82120965]
[1693430233990,0.07322166,223.67,223.35,0.82120965]
[1693430234184,0.07322166,223.67,223.36,0.82120965]
[1693430234388,0.07322166,223.67,223.34,0.82120965]
[1693430234689,0.07322166,223.67,223.35,0.82120965]
[1693430234889,0.07322166,223.67,223.36,0.82120965]
[1693430235087,0.07322166,223.67,223.34,0.82120965]
[1693430235284,0.07322166,223.67,223.35,0.82120965]
[1693430235491,0.07322166,223.67,223.36,0.82120965]
[1693430235691,0.07322166,223.67,223.37,0.82120965]
[1693430235886,0.07322166,223.67,223.38,0.82120965]
[1693430236091,0.07322166,223.67,223.39,0.82120965]
[1693430236289,0.07322166,223.67,223.4,0.82120965]
[1693430236591,0.07322166,223.67,223.33,0.07310465]
[1693430236792,0.07322166,223.67,223.34,0.82127995]
[1693430239496,0.07322166,223.66,223.34,0.82127995]
[1693430242396,0.07322166,223.66,223.34,0.8943846]
[1693430242591,0.07322166,223.66,223.35,0.82127995]
[1693430242793,0.07322166,223.65,223.35,0.82127995]
[1693430244600,0.07322166,223.64,223.35,0.8943846]
[1693430244793,0.07322166,223.64,223.36,0.82127995]
[1693430245596,0.07322166,223.63,223.36,0.8943846]
[1693430245800,0.07322166,223.63,223.37,0.82127995]
[1693430246398,0.07322166,223.63,223.37,0.8943846]
[1693430246595,0.07322166,223.62,223.38,0.82127995]
[1693430252501,0.07322166,223.61,223.38,0.82127995]
[1693430259815,0.07322166,223.61,223.38,0.8943846]
[1693430260011,0.07322166,223.61,223.39,0.82127995]
[1693430262815,0.07322166,223.6,223.39,0.82127995]
[1693430264419,0.07322166,223.6,223.39,0.8943846]
[1693430264719,0.07322166,223.6,223.4,0.82127995]
[1693430275526,0.07322166,223.59,223.38,0.07310465]
[1693430275733,0.07322166,223.58,223.37,0.07310465]
[1693430276034,0.07322166,223.58,223.38,0.8215512]
[1693430276831,0.07322166,223.58,223.36,0.07310465]
[1693430277032,0.07322166,223.58,223.37,0.82155649]
[1693430277231,0.07322166,223.59,223.37,0.82155649]
[1693430277633,0.14644333,223.61,223.37,0.82155649]
[1693430277634,0.07322166,223.58,223.37,0.82155649]
[1693430277835,0.07322166,223.56,223.31,0.07310465]
[1693430278029,0.07322166,223.55,223.32,0.82210978]
[1693430278334,0.07322166,223.56,223.33,0.82210978]
[1693430278532,0.07322166,223.56,223.3,0.07310465]
[1693430278831,0.07322166,223.57,223.31,0.82211332]
[1693430279036,0.07322166,223.57,223.32,0.82211332]
[1693430279337,0.07322166,223.57,223.33,0.82211332]
[1693430279534,0.07322166,223.57,223.29,0.07310465]
[1693430279733,0.07322166,223.57,223.3,0.82209066]
[1693430280137,0.07322166,223.58,223.29,0.89519531]
[1693430280333,0.07322166,223.58,223.3,0.82209066]
[1693430281540,0.07322166,223.58,223.31,0.82209066]
[1693430281737,0.07322166,223.58,223.32,0.82209066]
[1693430281937,0.07322166,223.58,223.33,0.82209066]
[1693430282139,0.07322166,223.58,223.34,0.82209066]
[1693430282337,0.07322166,223.58,223.28,0.07310465]
[1693430282539,0.07322166,223.58,223.29,0.82203565]
[1693430283341,0.07322166,223.59,223.29,0.82203565]
[1693430283534,0.07322166,223.59,223.28,0.82203565]
[1693430283739,0.07322166,223.59,223.29,0.82203565]
[1693430283940,0.07322166,223.59,223.28,0.82203565]
[1693430284141,0.07322166,223.59,223.29,0.82203565]
[1693430284333,0.07322166,223.59,223.28,0.82203565]
[1693430284536,0.07322166,223.59,223.29,0.82203565]
[1693430284738,0.07322166,223.59,223.28,0.82203565]
[1693430285043,0.07322166,223.59,223.29,0.82203565]
[1693430285241,0.07322166,223.59,223.3,0.82203565]
[1693430285442,0.07322166,223.6,223.31,0.82203565]
[1693430285649,0.07322166,223.6,223.27,0.82203565]
[1693430285840,0.07322166,223.59,223.32,0.82203565]
[1693430286347,0.07322166,223.59,223.28,0.82203565]
[1693430286540,0.07322166,223.59,223.24,0.07310465]
[1693430287146,0.07322166,223.59,223.25,0.82220973]
[1693430288444,0.07322166,223.6,223.25,0.82220973]
[1693430288646,0.07322166,223.6,223.26,0.82220973]
[1693430289047,0.07322166,223.6,223.24,0.82220973]
[1693430289347,0.07322166,223.6,223.25,0.82220973]
[1693430289548,0.07322166,223.6,223.24,0.82220973]
[1693430289748,0.07322166,223.6,223.25,0.82220973]
[1693430289945,0.07322166,223.6,223.24,0.82220973]
[1693430290249,0.07322166,223.6,223.25,0.82220973]
[1693430290445,0.07322166,223.6,223.26,0.82220973]
[1693430290646,0.07322166,223.6,223.27,0.82220973]
[1693430290848,0.07322166,223.6,223.28,0.82220973]
[1693430291049,0.07322166,223.6,223.24,0.82220973]
[1693430291250,0.07322166,223.6,223.25,0.82220973]
[1693430291450,0.07322166,223.6,223.24,0.82220973]
[1693430291650,0.07322166,223.61,223.25,0.82220973]
[1693430291845,0.07322166,223.61,223.26,0.82220973]
[1693430292045,0.07322166,223.61,223.27,0.82220973]
[1693430292245,0.07322166,223.61,223.23,0.82220973]
[1693430296252,0.07322166,223.61,223.22,0.82220973]
[1693430296445,0.07322166,223.61,223.23,0.82220973]
[1693430296645,0.07322166,223.61,223.21,0.07310465]
[1693430296646,0.07322166,223.61,223.24,0.82220973]
[1693430296852,0.07322166,223.61,223.22,0.82220973]
[1693430297051,0.07322166,223.61,223.23,0.82220973]
[1693430301658,0.07322166,223.6,223.23,0.82220973]
[1693430302962,0.07322166,223.6,223.23,0.89531438]
[1693430303261,0.07322166,223.6,223.24,0.82220973]
[1693430304861,0.07322166,223.6,223.24,0.89531438]
[1693430305161,0.07322166,223.6,223.25,0.82220973]
[1693430305763,0.07322166,223.6,223.25,0.89531438]
[1693430306165,0.07322166,223.6,223.26,0.82220973]
[1693430306864,0.07322166,223.6,223.26,0.89531438]
[1693430307060,0.07322166,223.6,223.27,0.82220973]
[1693430307766,0.07322166,223.59,223.27,0.89531438]
[1693430308064,0.07322166,223.59,223.28,0.82220973]
[1693430308965,0.07322166,223.58,223.28,0.89531438]
[1693430309167,0.07322166,223.58,223.29,0.82220973]
[1693430309766,0.07322166,223.57,223.29,0.89531438]
[1693430309968,0.07322166,223.57,223.3,0.82220973]
[1693430310965,0.07322166,223.56,223.3,0.89531438]
[1693430311259,0.07322166,223.56,223.31,0.82220973]
[1693430311966,0.07322166,223.55,223.31,0.89531438]
[1693430312166,0.07322166,223.55,223.32,0.82220973]
[1693430316562,0.07322166,223.54,223.32,0.82220973]
[1693430326372,0.07322166,223.54,223.33,0.82220973]
[1693430326571,0.07322166,223.54,223.32,0.82220973]
[1693430326877,0.07322166,223.54,223.33,0.82222063]
[1693430327078,0.07322166,223.54,223.32,0.82222063]
[1693430327270,0.07322166,223.54,223.33,0.82221982]
[1693430327475,0.07322166,223.54,223.31,0.07310465]
[1693430327672,0.07322166,223.54,223.32,0.82221722]
[1693430331680,0.07322166,223.53,223.32,0.82221722]
[1693430332074,0.07322166,223.53,223.3,0.07310465]
[1693430332276,0.07322166,223.53,223.31,0.82226011]
[1693430336584,0.07322166,223.52,223.31,0.82226011]
[1693430337084,0.07322166,223.52,223.32,0.82226011]
[1693430337286,0.07322166,223.52,223.29,0.07310465]
[1693430337587,0.07322166,223.52,223.3,0.89536689]
[1693430337785,0.07322166,223.52,223.31,0.82226224]
[1693430338188,0.07322166,223.53,223.31,0.82226224]
[1693430343289,0.07322166,223.52,223.31,0.82226224]
[1693430343484,0.07322166,223.52,223.3,0.82226224]
[1693430343687,0.07322166,223.52,223.31,0.82225945]
[1693430343883,0.07322166,223.52,223.29,0.07310465]
[1693430344087,0.07322166,223.52,223.3,0.82227296]
[1693430346195,0.07322166,223.52,223.29,0.82227296]
[1693430346395,0.07322166,223.52,223.3,0.82227296]
[1693430346596,0.07322166,223.52,223.29,0.82227296]
[1693430346795,0.07322166,223.52,223.3,0.82227296]
[1693430346997,0.07322166,223.52,223.29,0.82227296]
[1693430347197,0.07322166,223.52,223.3,0.82227296]
[1693430347396,0.07322166,223.52,223.31,0.82227296]
[1693430347598,0.07322166,223.52,223.28,0.07310465]
[1693430347795,0.07322166,223.52,223.29,0.82228049]
[1693430356507,0.07322166,223.52,223.3,0.82228049]
[1693430356702,0.07322166,223.52,223.28,0.82228049]
[1693430356908,0.07322166,223.52,223.29,0.82227921]
[1693430357202,0.07322166,223.52,223.3,0.82227921]
[1693430357409,0.07322166,223.52,223.28,0.89538386]
[1693430357609,0.07322166,223.52,223.29,0.82227921]
[1693430358608,0.07322166,223.51,223.28,0.82227921]
[1693430359207,0.07322166,223.52,223.28,0.82227921]
[1693430359604,0.07322166,223.52,223.28,0.89538386]
[1693430359806,0.07322166,223.52,223.29,0.82227921]
[1693430362013,0.07322166,223.52,223.28,0.82227921]
[1693430362213,0.07322166,223.52,223.29,0.82227921]
[1693430362409,0.07322166,223.51,223.3,0.82227921]
[1693430362613,0.07322166,223.51,223.28,0.82227921]
[1693430362810,0.07322166,223.51,223.29,0.82231427]
[1693430363013,0.07322166,223.51,223.3,0.82231427]
[1693430363208,0.07322166,223.51,223.27,0.07310465]
[1693430363411,0.07322166,223.51,223.28,0.82231269]
[1693430371620,0.07322166,223.51,223.28,0.89541734]
[1693430371821,0.07322166,223.51,223.29,0.82231269]
[1693430376124,0.07322166,223.5,223.29,0.82231269]
[1693430376319,0.14644333,223.53,223.29,0.82231269]
[1693430376320,0.07322166,223.51,223.29,0.82231269]
[1693430376923,0.07322166,223.5,223.29,0.82231269]
[1693430385844,0.07322166,223.49,223.29,0.82231269]
[1693430388243,0.07322166,223.49,223.28,0.07310465]
[1693430388543,0.07322166,223.49,223.29,0.82234718]
[1693430389042,0.07322166,223.49,223.27,0.07310465]
[1693430389236,0.07322166,223.49,223.28,0.89545054]
[1693430389436,0.07322166,223.49,223.29,0.82234589]
[1693430390838,0.07322166,223.49,223.28,0.89545054]
[1693430391041,0.07322166,223.49,223.29,0.82234199]
[1693430392039,0.07322166,223.49,223.28,0.82234199]
[1693430392241,0.07322166,223.49,223.29,0.82234195]
[1693430392437,0.07322166,223.49,223.28,0.8954466]
[1693430392641,0.07322166,223.49,223.29,0.82234162]
[1693430401845,0.07322166,223.49,223.27,0.07310465]
[1693430402046,0.07322166,223.49,223.28,0.82235496]
[1693430405756,0.07322166,223.49,223.28,0.89545961]
[1693430405948,0.07322166,223.49,223.29,0.82235496]
[1693430406154,0.07322166,223.49,223.27,0.07310465]
[1693430406457,0.07322166,223.49,223.28,0.82235452]
[1693430409357,0.07322166,223.48,223.28,0.82235452]
[1693430411258,0.07322166,223.49,223.28,0.82235452]
[1693430411457,0.14644333,223.51,223.28,0.82235452]
[1693430411458,0.07322166,223.48,223.28,0.82235452]
[1693430412358,0.07322166,223.48,223.27,0.07310465]
[1693430412560,0.07322166,223.49,223.28,0.8223819]
[1693430412760,0.07322166,223.48,223.28,0.8223819]
[1693430413454,0.07322166,223.48,223.26,0.07310465]
[1693430413659,0.07322166,223.48,223.27,0.82238098]
[1693430414161,0.07322166,223.49,223.27,0.82238098]
[1693430414660,0.07322166,223.48,223.27,0.82238098]
[1693430414860,0.07322166,223.49,223.27,0.89548563]
[1693430415063,0.07322166,223.49,223.28,0.82238098]
[1693430415261,0.07322166,223.49,223.26,0.07310465]
[1693430415456,0.07322166,223.48,223.27,0.82237895]
[1693430415659,0.07322166,223.48,223.27,0.8954836]
[1693430415962,0.07322166,223.48,223.28,0.82237895]
[1693430416463,0.07322166,223.48,223.26,0.07310465]
[1693430416758,0.07322166,223.49,223.27,0.89548049]
[1693430416964,0.07322166,223.48,223.28,0.82237584]
[1693430417262,0.07322166,223.49,223.28,0.82237584]
[1693430419764,0.07322166,223.48,223.28,0.82237584]
[1693430422569,0.07322166,223.49,223.28,0.82237584]
[1693430424361,0.07322166,223.49,223.28,0.89548049]
[1693430424566,0.07322166,223.49,223.29,0.82237584]
[1693430424762,0.07322166,223.49,223.27,0.07310465]
[1693430424967,0.07322166,223.49,223.28,0.82235237]
[1693430433876,0.07322166,223.49,223.28,0.89545702]
[1693430434177,0.07322166,223.49,223.29,0.82235237]
[1693430434376,0.07322166,223.49,223.27,0.07310465]
[1693430434576,0.07322166,223.49,223.28,0.82235261]
[1693430434778,0.07322166,223.49,223.28,0.89545726]
[1693430435078,0.07322166,223.49,223.29,0.82235261]
[1693430435377,0.07322166,223.49,223.28,0.07310465]
[1693430435577,0.07322166,223.49,223.29,0.82235102]
[1693430439976,0.07322166,223.48,223.27,0.07310465]
[1693430440177,0.07322166,223.48,223.28,0.82235864]
[1693430440773,0.07322166,223.49,223.28,0.82235864]
[1693430441276,0.07322166,223.48,223.28,0.82235864]
[1693430441974,0.07322166,223.49,223.28,0.89546329]
[1693430442180,0.07322166,223.48,223.27,0.07310465]
[1693430442479,0.07322166,223.49,223.28,0.82235393]
[1693430442775,0.07322166,223.49,223.28,0.89545858]
[1693430443079,0.07322166,223.49,223.29,0.82235393]
[1693430451181,0.07322166,223.48,223.29,0.82235393]
[1693430452781,0.07322166,223.49,223.29,0.82235393]
[1693430452981,0.07322166,223.48,223.29,0.82235393]
[1693430453483,0.07322166,223.49,223.29,0.82235393]
[1693430453984,0.07322166,223.48,223.29,0.82235393]
[1693430454180,0.07322166,223.49,223.29,0.82235393]
[1693430454376,0.97628892,223.56,223.29,0.82235393]
[1693430454377,0.07322166,223.48,223.29,0.82235393]
[1693430458892,0.07322166,223.48,223.28,0.07310465]
[1693430460393,0.07322166,223.48,223.29,0.82236008]
[1693430460592,0.07322166,223.48,223.28,0.07310465]
[1693430460892,0.07322166,223.48,223.29,0.82236058]
[1693430461088,0.07322166,223.48,223.28,0.07310465]
[1693430463495,0.07322166,223.48,223.29,0.82235849]
[1693430463691,0.07322166,223.49,223.29,0.89546314]
[1693430463892,0.07322166,223.49,223.29,0.07310465]
[1693430464896,0.07322166,223.49,223.28,0.07310465]
[1693430465099,0.07322166,223.49,223.29,0.8223598]
[1693430496621,0.07322166,223.48,223.29,0.8223598]
[1693430496823,0.07322166,223.48,223.27,0.07310465]
[1693430497022,0.07322166,223.48,223.28,0.82238334]
[1693430503320,0.07322166,223.49,223.28,0.82238334]
[1693430504021,0.07322166,223.48,223.28,0.82238334]
[1693430513831,0.07322166,223.42,223.2,0.07310465]
[1693430514029,0.07322166,223.41,223.19,0.07310465]
[1693430514333,0.07322166,223.4,223.19,0.07310465]
[1693430514533,0.07322166,223.43,223.15,0.07310465]
[1693430514733,0.07322166,223.43,223.16,0.8227556]
[1693430515531,0.07322166,223.45,223.16,0.8227556]
[1693430515733,0.07322166,223.45,223.17,0.8227556]
[1693430515929,0.07322166,223.45,223.15,0.8227556]
[1693430516233,0.07322166,223.45,223.16,0.8227556]
[1693430516428,0.07322166,223.45,223.17,0.8227556]
[1693430516628,0.07322166,223.46,223.15,0.8227556]
[1693430516833,0.07322166,223.46,223.16,0.8227556]
[1693430517033,0.07322166,223.46,223.14,0.8227556]
[1693430517234,0.07322166,223.46,223.15,0.8227556]
[1693430517437,0.07322166,223.46,223.16,0.8227556]
[1693430517638,0.07322166,223.47,223.14,0.8227556]
[1693430517930,0.07322166,223.47,223.15,0.8227556]
[1693430518133,0.07322166,223.47,223.16,0.8227556]
[1693430518336,0.07322166,223.47,223.13,0.8227556]
[1693430519139,0.07322166,223.47,223.14,0.8227556]
[1693430519334,0.07322166,223.47,223.12,0.8227556]
[1693430519539,0.07322166,223.48,223.13,0.8227556]
[1693430519840,0.07322166,223.48,223.14,0.8227556]
[1693430520041,0.07322166,223.48,223.15,0.8227556]
[1693430520240,0.07322166,223.48,223.12,0.8227556]
[1693430520439,0.07322166,223.48,223.13,0.8227556]
[1693430520631,0.07322166,223.48,223.12,0.8227556]
[1693430520834,0.07322166,223.48,223.13,0.8227556]
[1693430521033,0.07322166,223.48,223.12,0.8227556]
[1693430521237,0.07322166,223.48,223.13,0.8227556]
[1693430521432,0.07322166,223.48,223.14,0.8227556]
[1693430521632,0.07322166,223.48,223.15,0.8227556]
[1693430521838,0.07322166,223.48,223.16,0.8227556]
[1693430522040,0.07322166,223.48,223.11,0.8227556]
[1693430523443,0.07322166,223.49,223.11,0.8227556]
[1693430524345,0.07322166,223.48,223.11,0.8227556]
[1693430524646,0.07322166,223.49,223.12,0.8227556]
[1693430524841,0.07322166,223.49,223.13,0.8227556]
[1693430525042,0.07322166,223.49,223.14,0.8227556]
[1693430525243,0.07322166,223.49,223.1,0.8227556]
[1693430526744,0.07322166,223.49,223.09,0.8227556]
[1693430526942,0.07322166,223.5,223.1,0.8227556]
[1693430527144,0.07322166,223.5,223.09,0.8227556]
[1693430527346,0.07322166,223.5,223.1,0.8227556]
[1693430527545,0.07322166,223.5,223.09,0.8227556]
[1693430527846,0.07322166,223.5,223.08,0.07310465]
[1693430527847,0.07322166,223.5,223.1,0.8227556]
[1693430528049,0.07322166,223.5,223.08,0.07310465]
[1693430528050,0.07322166,223.5,223.11,0.8227556]
[1693430528249,0.07322166,223.5,223.12,0.8227556]
[1693430528442,0.07322166,223.5,223.09,0.8227556]
[1693430528649,0.07322166,223.5,223.1,0.8227556]
[1693430528943,0.07322166,223.5,223.11,0.8227556]
[1693430529145,0.07322166,223.5,223.12,0.8227556]
[1693430529342,0.07322166,223.5,223.09,0.8227556]
[1693430529542,0.07322166,223.5,223.1,0.8227556]
[1693430529745,0.07322166,223.5,223.09,0.8227556]
[1693430529940,0.07322166,223.5,223.1,0.8227556]
[1693430530147,0.07322166,223.5,223.09,0.8227556]
[1693430530342,0.07322166,223.5,223.1,0.8227556]
[1693430530546,0.07322166,223.5,223.11,0.8227556]
[1693430530743,0.07322166,223.5,223.12,0.8227556]
[1693430530946,0.07322166,223.5,223.07,0.07310465]
[1693430530947,0.07322166,223.5,223.13,0.8227556]
[1693430531146,0.07322166,223.5,223.08,0.8227556]
[1693430531342,0.07322166,223.5,223.09,0.8227556]
[1693430531546,0.07322166,223.5,223.08,0.8227556]
[1693430531740,0.07322166,223.5,223.09,0.8227556]
[1693430531944,0.07322166,223.5,223.1,0.8227556]
[1693430532146,0.07322166,223.5,223.11,0.8227556]
[1693430532345,0.07322166,223.5,223.12,0.8227556]
[1693430532647,0.07322166,223.5,223.13,0.8227556]
[1693430532848,0.07322166,223.51,223.08,0.89586025]
[1693430533142,0.07322166,223.5,223.09,0.8227556]
[1693430533547,0.07322166,223.46,223.09,0.8227556]
[1693430533748,0.07322166,223.45,223.09,0.8227556]
[1693430533950,0.07322166,223.45,223.04,0.8227556]
[1693430534142,0.07322166,223.45,223.1,0.8227556]
[1693430534346,0.07322166,223.45,223.11,0.8227556]
[1693430534549,0.07322166,223.45,223.02,0.8227556]
[1693430534945,0.07322166,223.45,223.01,0.8227556]
[1693430535143,0.07322166,223.45,223.02,0.8227556]
[1693430535350,0.07322166,223.45,223.01,0.8227556]
[1693430535544,0.07322166,223.45,223.02,0.8227556]
[1693430535749,0.07322166,223.45,223.01,0.8227556]
[1693430535951,0.07322166,223.46,223.01,0.8227556]
[1693430536144,0.07322166,223.46,223.0,0.8227556]
[1693430536346,0.07322166,223.46,223.01,0.8227556]
[1693430536547,0.07322166,223.46,223.02,0.8227556]
[1693430536745,0.07322166,223.46,223.01,0.8227556]
[1693430536950,0.07322166,223.46,223.03,0.8227556]
[1693430537148,0.07322166,223.46,223.02,0.8227556]
[1693430537350,0.07322166,223.46,222.99,0.07310465]
[1693430537351,0.07322166,223.47,223.03,0.8227556]
[1693430537546,0.89401469,223.46,223.0,0.89586025]
[1693430537750,0.07322166,223.47,223.01,0.8227556]
[1693430537955,0.82079579,223.46,223.01,0.8227556]
[1693430538251,0.82079579,223.46,223.02,0.8227556]
[1693430538451,0.82079579,223.46,223.0,0.89586025]
[1693430538653,0.82079579,223.46,223.01,0.8227556]
[1693430539150,0.82079579,223.46,223.02,0.8227556]
[1693430539349,0.82079579,223.46,223.03,0.8227556]
[1693430539550,0.82079579,223.46,223.0,0.8227556]
[1693430539751,0.82079579,223.46,223.01,0.8227556]
[1693430539947,0.82079579,223.46,223.02,0.8227556]
[1693430540151,0.82079579,223.46,223.0,0.8227556]
[1693430540347,0.82079579,223.46,223.01,0.8227556]
[1693430540546,0.89401745,223.46,223.02,0.8227556]
[1693430540750,0.07322166,223.47,223.03,0.8227556]
[1693430541052,0.82076187,223.46,223.04,0.8227556]
[1693430541248,0.82076187,223.46,223.01,0.8227556]
[1693430541551,0.82076187,223.46,223.02,0.8227556]
[1693430541754,0.82076187,223.46,223.03,0.8227556]
[1693430541954,0.82076187,223.46,223.01,0.8227556]
[1693430541955,0.89398353,223.46,223.01,0.8227556]
[1693430542154,0.07322166,223.46,223.02,0.8227556]
[1693430542353,0.07322166,223.46,223.01,0.8227556]
[1693430542556,0.07322166,223.46,223.02,0.8227556]
[1693430542751,0.07322166,223.46,223.03,0.8227556]
[1693430543055,0.07322166,223.46,223.04,0.8227556]
[1693430543254,0.07322166,223.46,223.01,0.8227556]
[1693430543455,0.07322166,223.46,223.02,0.8227556]
[1693430543756,0.07322166,223.46,223.03,0.8227556]
[1693430544057,0.07322166,223.46,223.04,0.8227556]
[1693430544359,0.07322166,223.46,223.05,0.8227556]
[1693430544556,0.07322166,223.46,223.06,0.8227556]
[1693430544757,0.07322166,223.45,223.07,0.8227556]
[1693430545056,0.07322166,223.45,223.08,0.8227556]
[1693430545355,0.07322166,223.45,223.09,0.8227556]
[1693430545555,0.07322166,223.44,223.02,0.8227556]
[1693430545756,0.07322166,223.44,223.03,0.8227556]
[1693430545949,0.07322166,223.44,223.04,0.8227556]
[1693430546153,0.07322166,223.44,223.01,0.07310465]
[1693430546154,0.07322166,223.44,223.05,0.8227556]
[1693430546355,0.07322166,223.44,223.06,0.8227556]
[1693430546554,0.07322166,223.43,223.06,0.8227556]
[1693430546755,0.07322166,223.43,223.07,0.8227556]
[1693430546956,0.07322166,223.43,223.08,0.8227556]
[1693430547159,0.07322166,223.43,223.03,0.8227556]
[1693430547460,0.07322166,223.43,223.04,0.8227556]